bitfinex-derivatives/quotes_ETHF0:USTF0_20250904
["timestamp","ask_amount","ask_price","bid_price","bid_amount"]
[1756994256431,2.0377,4382.0,4381.9,3.2078]
[1756994256837,1.4372,4381.4,4381.1,1.62954755]
[1756994257028,0.6005,4381.5,4381.2,0.243]
[1756994257627,1.4372,4381.4,4381.2,0.243]
[1756994257832,0.6005,4381.5,4381.2,0.243]
[1756994258029,1.4372,4381.4,4381.2,0.243]
[1756994258640,0.6005,4381.5,4381.2,0.243]
[1756994258937,0.6005,4381.5,4381.3,1.4787]
[1756994258938,1.4372,4381.5,4381.3,1.4787]
[1756994259239,1.4372,4381.5,4381.2,0.243]
[1756994259539,1.4372,4381.9,4381.3,1.4787]
[1756994260237,1.4372,4381.4,4381.2,0.243]
[1756994260636,0.6005,4381.5,4381.2,0.243]
[1756994261435,1.4372,4382.8,4381.6,1.4787]
[1756994261635,1.4372,4382.9,4382.3,3.2078]
[1756994261837,3.2078,4383.3,4382.4,0.243]
[1756994262539,1.9482,4383.0,4382.4,7.42798332]
[1756994262843,1.4541,4383.0,4382.5,1.63215905]
[1756994263143,1.4541,4383.0,4382.8,4.712]
[1756994263340,1.4541,4383.0,4382.9,0.243]
[1756994263542,1.4541,4383.0,4382.9,4.29162427]
[1756994264246,2.0339,4383.0,4382.9,0.243]
[1756994264737,1.4541,4383.0,4382.9,0.243]
[1756994265241,2.0339,4383.0,4382.9,0.243]
[1756994265438,0.5798,4383.0,4382.9,0.242]
[1756994265641,0.6005,4383.5,4382.9,4.29062427]
[1756994265843,0.6005,4383.5,4383.3,4.04862427]
[1756994266045,2.0546,4383.5,4383.4,0.242]
[1756994267341,1.4541,4384.1,4383.5,1.5042]
[1756994267543,0.5798,4384.0,4383.6,0.242]
[1756994267732,2.0339,4384.0,4383.9,3.2078]
[1756994267930,2.0339,4384.0,4383.4,1.63215905]
[1756994268134,2.0339,4384.0,4383.5,0.242]
[1756994268339,2.0339,4384.0,4383.3,4.83995905]
[1756994268539,0.5798,4384.0,4383.6,0.242]
[1756994268743,1.4541,4383.9,4383.6,0.242]
[1756994269243,1.4541,4383.4,4383.3,3.2078]
[1756994269438,1.4541,4383.4,4383.3,3.4498]
[1756994269746,1.4541,4383.4,4382.9,1.63215905]
[1756994269747,0.5798,4383.0,4382.9,1.63215905]
[1756994269946,2.0339,4383.0,4382.9,0.242]
[1756994270338,2.0339,4383.0,4382.6,1.63215905]
[1756994270339,1.4541,4382.9,4382.6,1.63215905]
[1756994270643,0.5798,4383.0,4382.7,0.242]
[1756994271043,1.4541,4382.9,4382.7,0.242]
[1756994271635,0.5798,4383.0,4382.7,0.242]
[1756994272043,1.4541,4382.9,4382.7,0.242]
[1756994272234,1.4541,4382.4,4382.2,3.2078]
[1756994272433,1.4541,4382.4,4382.3,0.242]
[1756994272638,1.4541,4382.9,4382.3,0.242]
[1756994272842,0.5798,4383.0,4382.4,0.242]
[1756994273039,2.0339,4382.5,4382.4,0.242]
[1756994275444,2.0339,4382.5,4382.2,7.25642427]
[1756994275646,1.4541,4382.4,4382.3,0.242]
[1756994276850,0.5798,4383.0,4382.3,1.87415905]
[1756994277142,0.5798,4382.5,4382.3,1.63215905]
[1756994277344,1.4541,4382.4,4382.2,1.63215905]
[1756994277550,1.4541,4382.4,4382.3,0.242]
[1756994278352,1.4541,4382.4,4382.0,0.001]
[1756994278552,1.4541,4382.4,4382.1,0.242]
[1756994279651,1.4541,4382.4,4382.0,0.243]
[1756994280054,4.6619,4382.4,4382.0,0.243]
[1756994280251,1.4541,4381.9,4381.5,1.63215905]
[1756994280447,1.4541,4381.4,4381.0,0.242]
[1756994281051,0.5798,4381.5,4380.7,1.63215905]
[1756994281052,1.4541,4380.9,4380.7,1.63215905]
[1756994281252,1.4541,4380.9,4380.8,0.242]
[1756994282054,0.5798,4381.0,4380.6,3.4498]
[1756994282355,1.4541,4380.9,4380.6,1.6315]
[1756994282651,0.5798,4381.0,4380.6,1.6315]
[1756994282652,1.4541,4380.7,4380.6,1.6315]
[1756994283554,3.2078,4380.8,4380.2,0.242]
[1756994283855,1.4541,4380.7,4380.2,0.242]
[1756994284056,1.4541,4380.6,4380.2,0.242]
[1756994284256,3.2078,4380.8,4380.2,0.242]
[1756994284453,1.4541,4380.7,4380.2,1.7462]
[1756994284850,3.2078,4380.8,4380.2,1.7462]
[1756994285356,1.4541,4380.7,4380.2,1.7462]
[1756994286056,3.2078,4380.8,4380.2,1.7462]
[1756994286361,1.4541,4380.7,4380.2,0.242]
[1756994287257,1.3188,4380.2,4379.8,1.85880853]
[1756994287452,1.3188,4380.2,4379.9,0.242]
[1756994287453,1.4541,4380.1,4379.9,0.242]
[1756994287656,1.4541,4380.1,4380.0,1.5042]
[1756994288260,1.3188,4380.2,4379.9,0.242]
[1756994288558,1.3188,4380.2,4380.1,1.5042]
[1756994289963,1.3188,4380.2,4380.1,5.5042]
[1756994290161,3.2078,4380.8,4380.2,1.5042]
[1756994290350,3.2078,4380.8,4380.4,1.5042]
[1756994290553,3.2078,4380.8,4380.6,1.5042]
[1756994290854,1.4541,4381.2,4380.7,0.242]
[1756994291053,1.4541,4381.1,4380.7,1.7462]
[1756994291254,3.4342,4380.8,4380.7,0.242]
[1756994291652,6.642,4380.8,4380.3,0.242]
[1756994291962,1.9801,4380.4,4380.3,0.242]
[1756994292161,3.4342,4380.4,4380.3,0.242]
[1756994292462,1.0197,4380.8,4380.7,2.0082]
[1756994292655,3.5198,4380.8,4380.7,3.7266]
[1756994292856,3.5198,4380.8,4380.7,0.242]
[1756994293063,0.99,4380.3,4380.2,3.4846]
[1756994293258,2.0097,4380.3,4380.2,3.4846]
[1756994293556,0.99,4380.3,4380.2,3.7266]
[1756994293962,0.99,4380.3,4380.2,5.35875905]
[1756994294355,3.2078,4381.4,4380.2,7.9549]
[1756994294555,3.2078,4381.4,4381.3,3.4846]
[1756994294759,5.7384,4381.4,4381.3,3.7266]
[1756994295370,3.2078,4381.4,4381.3,3.7266]
[1756994295567,2.0907,4382.0,4381.4,1.4764]
[1756994295763,3.2078,4382.2,4381.5,2.0563037]
[1756994296071,0.0728963,4381.3,4381.2,3.2078]
[1756994296261,0.0728963,4381.3,4381.2,3.4498]
[1756994297665,0.0728963,4381.3,4381.2,0.242]
[1756994297872,1.5837963,4381.3,4381.2,0.242]
[1756994298760,5.1028,4381.2,4380.2,3.9681]
[1756994299066,1.5109,4380.9,4380.3,0.242]
[1756994299266,1.5109,4380.9,4380.7,3.2078]
[1756994299570,1.5109,4380.9,4380.8,0.242]
[1756994300763,0.6096,4380.5,4380.3,2.04019881]
[1756994300962,2.1205,4380.5,4380.4,0.242]
[1756994301664,1.5109,4380.4,4380.3,2.04019881]
[1756994301860,0.6096,4380.5,4380.2,5.24799881]
[1756994302069,1.5109,4380.4,4380.3,0.242]
[1756994307472,1.5109,4380.4,4380.3,2.28219881]
[1756994307768,1.5109,4380.4,4380.3,0.242]
[1756994308073,0.6096,4380.5,4380.3,0.242]
[1756994308270,0.6096,4380.5,4380.0,2.04629946]
[1756994308469,0.6096,4380.5,4379.9,0.242]
[1756994308666,0.6096,4380.5,4380.0,1.4764]
[1756994308667,2.0133,4380.5,4380.0,1.4764]
[1756994308867,1.5109,4380.4,4379.9,2.28829946]
[1756994309066,0.5024,4380.5,4380.0,2.04629946]
[1756994309263,0.5024,4380.5,4380.1,1.4764]
[1756994309467,1.5109,4380.4,4380.2,0.242]
[1756994309868,0.5024,4380.5,4380.2,0.242]
[1756994310373,4.5024,4380.5,4380.0,0.242]
[1756994310668,4.7187,4380.1,4380.0,0.242]
[1756994312069,0.3676,4380.0,4379.7,2.04629946]
[1756994312274,1.5109,4379.9,4379.8,0.242]
[1756994312483,0.3676,4380.0,4379.7,2.04629946]
[1756994312673,1.5109,4379.9,4379.8,0.242]
[1756994313072,1.5109,4380.6,4379.8,0.242]
[1756994313273,1.5109,4380.4,4379.8,2.28829946]
[1756994313571,1.5109,4380.4,4379.9,0.242]
[1756994314172,3.2078,4380.2,4380.0,0.242]
[1756994314376,1.5109,4380.1,4380.0,0.242]
[1756994314572,1.5109,4380.1,4379.7,2.04629946]
[1756994314573,3.2078,4380.2,4379.7,2.04629946]
[1756994314783,1.5109,4380.1,4379.8,0.242]
[1756994314977,0.435,4380.0,4379.8,0.242]
[1756994315178,1.5109,4379.9,4379.8,0.242]
[1756994316976,1.5109,4379.7,4379.4,3.52269946]
[1756994317174,1.5109,4379.7,4379.4,1.4764]
[1756994317374,0.6756,4379.8,4379.5,0.242]
[1756994317677,3.2078,4379.6,4379.3,2.04629946]
[1756994317870,1.5109,4379.4,4379.3,2.28829946]
[1756994318075,1.5109,4379.4,4379.0,0.243]
[1756994318472,0.6096,4379.5,4379.0,0.243]
[1756994318679,0.6096,4379.5,4379.1,1.4764]
[1756994319079,3.2078,4379.6,4379.1,1.4764]
[1756994319274,3.2078,4379.6,4379.0,0.837]
[1756994319275,0.6096,4379.5,4379.0,1.7194]
[1756994319477,0.6096,4379.5,4379.1,1.4764]
[1756994319780,1.424,4379.1,4379.0,0.243]
[1756994319977,4.7149,4379.1,4379.0,0.001]
[1756994320177,0.6086,4379.0,4377.9,2.04629946]
[1756994320381,1.5109,4378.2,4378.0,0.242]
[1756994320581,1.5109,4378.3,4378.0,0.242]
[1756994320882,1.5109,4378.3,4378.1,0.242]
[1756994321080,3.2078,4378.4,4378.1,0.242]
[1756994321280,3.2078,4378.4,4377.8,1.4764]
[1756994321480,3.2078,4378.4,4377.9,0.242]
[1756994321676,1.5109,4378.3,4377.5,0.594]
[1756994321882,1.5109,4378.3,4377.7,1.4764]
[1756994322481,3.2078,4378.4,4377.7,1.4764]
[1756994323582,0.6086,4379.0,4378.1,1.5165]
[1756994323583,3.2078,4379.0,4378.1,1.5165]
[1756994323790,3.2078,4379.0,4378.5,0.6039]
[1756994323991,3.2078,4379.0,4378.6,1.7585]
[1756994324988,1.443,4378.9,4378.7,1.5165]
[1756994325186,1.443,4378.9,4378.7,0.242]
[1756994325382,1.443,4378.9,4378.8,1.5165]
[1756994325587,3.2078,4379.0,4378.7,0.242]
[1756994325790,3.2078,4379.0,4378.7,0.0329]
[1756994325990,1.443,4378.8,4378.1,2.04629946]
[1756994326290,1.443,4378.8,4378.2,0.242]
[1756994327993,1.443,4378.8,4378.2,1.7585]
[1756994328594,1.443,4378.8,4378.2,3.80479946]
[1756994328896,2.4185,4378.3,4378.2,5.60339946]
[1756994329086,2.4185,4378.3,4378.2,3.7991]
[1756994329287,3.7863,4379.0,4378.2,3.7991]
[1756994329288,1.443,4378.8,4378.2,3.7991]
[1756994329588,3.2078,4379.0,4378.7,2.0406]
[1756994329794,3.2078,4379.0,4378.8,3.7991]
[1756994329795,2.4185,4378.9,4378.8,3.7991]
[1756994330394,3.4477,4378.9,4378.8,2.2826]
[1756994330794,3.4477,4378.9,4378.8,3.7991]
[1756994330991,2.4185,4378.9,4378.8,3.7991]
[1756994331495,3.4477,4378.9,4378.8,2.2826]
[1756994331795,2.1944,4378.8,4378.3,2.04629946]
[1756994331994,2.4185,4378.4,4378.3,3.04849946]
[1756994332197,2.4185,4378.4,4378.3,2.2826]
[1756994332396,2.4185,4378.4,4378.3,5.84539946]
[1756994332599,1.443,4378.7,4378.6,3.5571]
[1756994332784,2.1944,4378.8,4378.6,3.5571]
[1756994332990,2.1944,4378.8,4378.7,3.7991]
[1756994333995,4.1991,4378.8,4378.6,2.04629946]
[1756994334294,5.6421,4378.8,4378.7,0.242]
[1756994334890,3.4477,4378.8,4378.7,0.242]
[1756994335091,3.4477,4378.8,4378.5,2.04629946]
[1756994335292,3.4477,4378.7,4378.6,0.242]
[1756994335696,3.4477,4378.7,4378.6,1.2804]
[1756994336699,4.0262,4378.5,4378.3,2.04629946]
[1756994336896,4.0262,4378.5,4378.4,0.242]
[1756994338397,1.443,4378.3,4378.1,2.04629946]
[1756994338599,3.4477,4378.3,4378.2,0.242]
[1756994338794,3.4477,4378.3,4378.2,1.2804]
[1756994339193,0.5785,4378.5,4378.2,3.7991]
[1756994339396,1.443,4378.5,4378.4,3.5571]
[1756994339903,3.7863,4379.0,4378.4,2.0406]
[1756994340103,3.4477,4378.9,4378.8,1.0384]
[1756994340307,3.4477,4378.9,4378.8,0.242]
[1756994340499,3.4477,4378.9,4377.9,4.7243]
[1756994340500,1.443,4378.8,4378.0,2.86707143]
[1756994340702,3.4477,4378.1,4378.0,3.90547143]
[1756994340904,3.4477,4378.1,4378.0,1.2804]
[1756994342500,4.0262,4378.0,4377.9,3.08469946]
[1756994342707,4.0262,4378.0,4377.9,1.2804]
[1756994342898,4.0262,4378.0,4377.9,3.32669946]
[1756994343105,4.0262,4378.0,4377.9,4.32889946]
[1756994343406,2.4185,4378.0,4377.9,5.84539946]
[1756994343707,3.7863,4379.0,4377.9,5.84539946]
[1756994343708,3.7863,4380.0,4378.6,1.5165]
[1756994344006,3.7863,4380.0,4379.3,2.0474409]
[1756994344210,3.7863,4380.0,4379.4,0.242]
[1756994345607,1.443,4379.9,4379.4,0.242]
[1756994346399,3.4477,4379.5,4379.4,1.2804]
[1756994347213,3.4477,4379.5,4379.4,2.7969]
[1756994347612,3.4477,4379.5,4379.4,3.7991]
[1756994349710,0.9755,4379.5,4379.4,3.7991]
[1756994350110,0.9755,4379.6,4379.5,3.5571]
[1756994350310,3.4477,4379.9,4379.8,3.5571]
[1756994350615,3.4477,4379.9,4379.8,3.7991]
[1756994353325,4.1487,4379.5,4379.4,2.0474409]
[1756994353528,4.1487,4379.5,4379.4,1.2085]
[1756994355526,2.5194,4379.5,4379.4,3.7165]
[1756994355932,3.5681,4379.5,4379.4,3.7165]
[1756994356133,3.5681,4379.5,4379.4,2.1831]
[1756994356333,4.1487,4379.5,4379.4,1.2085]
[1756994356831,4.1487,4379.5,4379.2,2.0474409]
[1756994357133,3.5681,4379.3,4379.2,2.0474409]
[1756994357430,3.5681,4379.3,4379.2,0.242]
[1756994357932,3.5681,4379.3,4379.2,1.2085]
[1756994358228,3.5681,4379.3,4379.2,0.9665]
[1756994358434,3.5681,4379.3,4379.2,0.242]
[1756994358734,3.5681,4379.4,4379.3,2.4999]
[1756994359031,3.5681,4379.4,4379.3,0.9665]
[1756994359227,3.5681,4379.4,4379.3,1.2085]
[1756994360832,3.5681,4379.4,4379.3,0.242]
[1756994361833,4.2437,4379.3,4379.2,0.9665]
[1756994362029,4.2437,4379.3,4379.2,1.2085]
[1756994362931,4.2437,4379.3,4379.2,3.7165]
[1756994363735,4.2437,4379.3,4379.2,1.2085]
[1756994364330,4.2437,4379.3,4379.2,2.7419]
[1756994365036,3.5681,4379.3,4379.2,0.3733]
[1756994366129,3.5681,4379.3,4379.2,0.242]
[1756994368035,0.6068,4379.2,4379.1,3.4745]
[1756994368236,0.6068,4379.2,4379.1,3.7165]
[1756994368737,1.6152,4379.2,4379.1,3.7165]
[1756994368934,4.1749,4379.2,4379.1,3.4745]
[1756994369137,4.1749,4379.2,4379.1,2.1831]
[1756994369342,4.1749,4379.2,4379.1,1.9411]
[1756994369632,4.1749,4379.2,4379.1,0.242]
[1756994370038,4.1749,4379.2,4379.1,2.29067435]
[1756994370236,4.1749,4379.2,4379.1,4.23177435]
[1756994370440,4.1749,4379.2,4379.1,5.76517435]
[1756994370832,3.5681,4379.2,4379.1,5.76517435]
[1756994371338,3.5681,4379.2,4379.1,3.7165]
[1756994373445,3.5681,4379.2,4379.1,2.1831]
[1756994375234,3.5681,4379.2,4379.1,3.7165]
[1756994376939,3.7894,4380.0,4379.2,1.5334]
[1756994376940,1.511,4379.4,4379.2,1.5334]
[1756994377140,1.511,4379.4,4379.3,3.7165]
[1756994377339,3.7894,4380.0,4379.3,3.7165]
[1756994377537,2.5194,4379.6,4379.5,5.52634719]
[1756994377738,3.5681,4379.6,4379.5,5.76834719]
[1756994378740,2.5194,4379.6,4379.5,5.76834719]
[1756994378939,3.7894,4380.0,4379.5,2.8021]
[1756994379134,2.5194,4379.9,4379.8,3.4745]
[1756994379337,2.5194,4379.9,4379.8,3.7165]
[1756994379843,1.511,4379.8,4379.4,3.84101726]
[1756994380144,2.0571,4379.8,4379.7,1.9411]
[1756994380539,3.5681,4379.8,4379.7,3.4745]
[1756994381748,3.5681,4379.8,4379.7,3.7165]
[1756994382153,3.5681,4379.8,4379.7,2.1831]
[1756994383349,2.5194,4379.8,4379.7,3.6605]
[1756994384849,3.4885,4380.0,4379.9,3.4724]
[1756994385056,4.1134,4380.0,4379.9,3.7144]
[1756994385757,4.1134,4380.0,4379.9,0.3202]
[1756994385957,4.1134,4380.0,4379.9,0.8861]
[1756994386842,4.1134,4380.0,4379.9,0.8079]
[1756994387752,3.0964,4380.0,4379.9,1.3738]
[1756994389545,4.1134,4380.0,4379.9,0.8079]
[1756994391557,4.1134,4380.0,4379.9,1.3738]
[1756994392957,3.0964,4380.0,4379.9,1.3738]
[1756994393759,0.6259,4380.0,4379.9,0.242]
[1756994393962,4.1134,4380.0,4379.9,0.242]
[1756994394857,3.4875,4379.7,4379.6,2.86641726]
[1756994395055,0.6249,4379.5,4379.4,2.86641726]
[1756994395257,4.1124,4379.5,4379.4,3.10841726]
[1756994395453,10.9472,4379.5,4377.9,2.08817688]
[1756994395662,3.2078,4378.0,4377.9,4.60607688]
[1756994395956,3.2078,4378.0,4377.9,3.4724]
[1756994396161,3.2078,4378.0,4377.9,3.7144]
[1756994397556,3.2078,4378.5,4378.0,0.6106]
[1756994397762,3.2078,4378.5,4378.2,3.5267509]
[1756994397956,3.2078,4378.5,4378.3,0.242]
[1756994398358,3.2078,4378.5,4378.3,1.7194]
[1756994399158,0.2492,4379.4,4378.3,1.7194]
[1756994399159,3.2078,4379.0,4378.3,1.7194]
[1756994399360,3.2078,4379.0,4378.5,2.6599509]
[1756994399664,3.2078,4379.0,4378.6,0.242]
[1756994399857,3.2078,4379.0,4378.9,1.4774]
[1756994400158,0.22839,4378.9,4377.6,1.82973]
[1756994400360,3.2078,4378.3,4377.6,1.82973]
[1756994400558,0.2284,4378.8,4377.8,1.4774]
[1756994400760,3.2078,4377.9,4377.7,2.0493509]
[1756994400960,3.2078,4377.9,4377.6,0.35233]
[1756994401259,0.22843,4377.8,4376.3,1.4774]
[1756994401465,3.2078,4376.4,4376.2,2.0493509]
[1756994401958,4.2285,4376.3,4374.9,1.4774]
[1756994402262,3.2078,4374.4,4372.8,0.1737997]
[1756994402462,3.2078,4372.9,4372.8,0.1737997]
[1756994402653,3.4498,4372.9,4372.8,0.1737997]
[1756994402855,3.4498,4372.9,4371.4,0.03980163]
[1756994403158,3.2078,4372.3,4372.1,1.4774]
[1756994403360,3.2078,4373.3,4372.5,0.6106]
[1756994403562,3.2078,4373.3,4372.7,1.4774]
[1756994403760,2.01362576,4378.0,4372.6,0.243]
[1756994403761,0.243,4374.5,4373.1,1.4774]
[1756994403961,3.2078,4373.8,4373.2,1.7204]
[1756994404156,3.2078,4373.8,4373.5,0.6106]
[1756994404467,3.2078,4373.8,4373.6,0.243]
[1756994404655,32.72317545,4377.5,4373.6,0.243]
[1756994404656,3.2078,4374.3,4373.7,1.4774]
[1756994404862,3.2078,4375.0,4374.1,1.4774]
[1756994405056,3.2078,4375.7,4375.5,0.6106]
[1756994405268,3.2078,4375.7,4375.6,1.4774]
[1756994405460,3.2078,4375.7,4375.0,0.6106]
[1756994405660,3.2078,4375.7,4375.6,1.4774]
[1756994406468,3.2078,4375.7,4375.6,1.7214]
[1756994406662,3.2078,4377.0,4376.1,1.4774]
[1756994406968,3.2078,4377.0,4376.3,1.4774]
[1756994407577,3.2078,4377.0,4376.5,0.6106]
[1756994407767,3.2078,4377.0,4376.6,1.4774]
[1756994407962,3.2078,4377.0,4376.8,1.4774]
[1756994408366,3.2078,4377.0,4376.9,5.4774]
[1756994408666,3.2078,4378.4,4377.1,1.4774]
[1756994408967,0.244,4378.6,4377.3,1.4774]
[1756994408968,3.2078,4377.9,4377.3,1.4774]
[1756994412370,0.244,4378.8,4377.7,3.2078]
[1756994412371,1.5144,4378.8,4377.7,3.2078]
[1756994412570,1.5144,4378.8,4377.8,1.7308]
[1756994413063,1.5144,4378.8,4377.5,0.5846]
[1756994413064,3.2078,4378.4,4377.5,0.5846]
[1756994413264,1.5144,4378.2,4377.9,0.243]
[1756994413569,1.5144,4378.3,4377.9,0.243]
[1756994413764,3.2078,4378.4,4377.9,0.243]
[1756994413964,1.5144,4378.2,4377.9,0.243]
[1756994414167,1.5144,4378.2,4377.5,0.5846]
[1756994414168,4.0,4378.1,4376.7,1.4878]
[1756994414473,1.5144,4377.8,4376.6,3.2078]
[1756994414668,1.5144,4378.3,4377.2,4.6956]
[1756994414873,3.2078,4378.4,4377.6,1.4878]
[1756994415170,3.2078,4378.4,4377.7,3.2078]
[1756994415372,3.3778,4378.9,4378.2,3.2078]
[1756994415570,3.3778,4378.9,4378.3,1.7318]
[1756994416369,3.3778,4378.9,4378.3,0.244]
[1756994416562,1.5144,4378.6,4378.3,0.244]
[1756994416766,3.3778,4378.9,4378.3,0.244]
[1756994417168,1.5144,4378.7,4378.4,1.4878]
[1756994417368,1.5144,4378.7,4378.3,0.244]
[1756994417369,1.5144,4378.8,4378.5,0.243]
[1756994417572,1.5144,4378.8,4378.6,0.243]
[1756994417763,1.5144,4378.7,4378.6,0.243]
[1756994417970,3.3778,4378.9,4378.6,0.243]
[1756994418265,1.5144,4378.7,4378.6,0.243]
[1756994418472,0.17,4378.9,4378.6,0.243]
[1756994418975,1.785,4378.6,4378.4,3.2078]
[1756994419177,2.6346,4378.6,4378.5,0.243]
[1756994419375,2.6346,4378.6,4378.5,6.3154]
[1756994420275,2.6346,4378.6,4378.5,1.4878]
[1756994420570,4.149,4378.6,4378.5,0.243]
[1756994420876,2.6346,4378.6,4378.5,1.7308]
[1756994421868,0.0073,4378.8,4378.5,0.243]
[1756994422068,0.0073,4378.8,4378.6,1.4878]
[1756994422676,0.0073,4378.8,4378.5,0.243]
[1756994422864,0.0073,4378.8,4377.8,3.2078]
[1756994423069,3.2078,4378.4,4377.9,0.243]
[1756994423269,0.0073,4378.8,4378.1,1.4878]
[1756994423568,1.5144,4378.3,4378.2,0.243]
[1756994423875,1.5144,4378.3,4377.7,0.243]
[1756994424970,3.2078,4378.4,4377.7,0.243]
[1756994425170,4.7222,4378.4,4377.8,1.4878]
[1756994425372,4.7222,4378.4,4377.7,0.243]
[1756994425568,4.7222,4378.4,4377.4,3.2078]
[1756994425569,3.2078,4378.4,4377.4,3.2078]
[1756994425775,0.5741,4378.5,4376.5,0.5846]
[1756994425776,1.5144,4377.8,4377.5,0.243]
[1756994427277,5.5144,4377.8,4377.5,0.243]
[1756994427471,5.5144,4377.8,4376.4,1.4878]
[1756994427678,1.5144,4377.3,4376.5,0.243]
[1756994427979,1.5144,4377.3,4376.6,1.4878]
[1756994428282,1.5144,4377.3,4376.7,1.6367]
[1756994428578,3.2078,4377.4,4376.8,1.4878]
[1756994429282,1.5144,4377.3,4376.7,1.6367]
[1756994429776,1.5144,4376.9,4376.8,0.243]
[1756994429976,1.5144,4376.9,4376.8,1.8524]
[1756994430182,3.2078,4377.4,4376.8,3.3402]
[1756994430373,4.7222,4377.4,4376.8,3.3402]
[1756994430975,4.7222,4377.4,4376.9,0.243]
[1756994431179,1.5144,4377.3,4377.0,1.4878]
[1756994431479,1.5144,4377.1,4376.8,1.0716]
[1756994431781,1.5144,4377.0,4376.9,1.7308]
[1756994431973,0.5741,4377.0,4376.9,0.243]
[1756994432177,6.0885,4377.0,4376.9,0.243]
[1756994432371,4.5741,4377.0,4375.2,3.2078]
[1756994432574,4.5741,4377.0,4375.3,0.243]
[1756994432575,2.0885,4376.0,4375.3,0.243]
[1756994433377,1.5144,4376.0,4375.5,4.65974089]
[1756994433678,0.5741,4376.5,4375.6,1.4878]
[1756994433883,4.7222,4376.6,4376.1,4.65974089]
[1756994434073,0.5741,4377.0,4376.2,0.243]
[1756994434277,0.5741,4377.0,4376.3,1.4878]
[1756994434278,1.5144,4377.0,4376.3,1.4878]
[1756994434878,1.5144,4377.0,4376.2,0.243]
[1756994434879,2.0885,4377.0,4376.2,0.243]
[1756994435078,1.5144,4377.3,4376.8,1.4878]
[1756994435385,2.0885,4378.0,4377.1,1.4878]
[1756994435876,1.5144,4378.0,4377.1,1.4878]
[1756994436070,3.2078,4378.3,4377.1,1.4878]
[1756994436071,1.5144,4378.2,4377.1,1.4878]
[1756994436275,1.5144,4378.2,4377.2,1.706]
[1756994436485,1.5144,4378.2,4377.3,0.244]
[1756994437187,1.5144,4378.2,4377.5,0.5846]
[1756994437387,3.2078,4378.3,4377.6,1.4878]
[1756994437682,1.5144,4378.6,4377.7,3.2078]
[1756994437875,1.5144,4378.6,4377.8,0.244]
[1756994438271,3.2151,4378.8,4378.1,1.4878]
[1756994438471,3.2151,4378.8,4378.2,3.4518]
[1756994438681,3.2151,4378.8,4378.2,0.244]
[1756994439381,0.5741,4378.5,4378.2,0.244]
[1756994439584,1.5144,4378.4,4378.2,0.244]
[1756994439879,1.5144,4378.6,4378.2,0.244]
[1756994440079,3.2151,4378.8,4378.2,1.7318]
[1756994440685,1.5144,4378.7,4378.2,1.7318]
[1756994440885,3.2151,4378.8,4378.2,0.244]
[1756994441883,0.0073,4378.8,4378.7,1.4878]
[1756994442090,1.5217,4378.8,4378.7,0.243]
[1756994442292,0.0073,4378.8,4378.7,1.6895]
[1756994442781,1.4581,4378.8,4378.7,0.243]
[1756994442984,1.0578,4378.7,4378.6,4.6543]
[1756994443177,1.0578,4378.7,4378.6,4.8973]
[1756994444476,1.0578,4378.7,4378.6,8.8973]
[1756994444681,0.17,4378.9,4378.7,1.4465]
[1756994444880,1.4508,4379.9,4378.7,1.4465]
[1756994445076,3.2078,4380.4,4379.4,3.2078]
[1756994445283,1.4508,4379.7,4379.5,0.243]
[1756994445482,0.0073,4379.8,4379.5,0.243]
[1756994445788,1.4508,4379.7,4379.5,0.243]
[1756994446081,0.0073,4379.8,4379.6,1.4465]
[1756994446489,0.0073,4379.8,4379.5,0.243]
[1756994446490,0.0073,4379.8,4379.5,1.6895]
[1756994446687,1.4508,4379.7,4379.5,0.243]
[1756994446887,0.0073,4379.8,4379.5,0.243]
[1756994447086,1.4508,4379.7,4379.5,0.243]
[1756994447682,2.0765,4379.5,4379.4,3.2078]
[1756994447887,2.0765,4379.5,4379.4,0.243]
[1756994450283,1.4508,4379.5,4379.4,0.243]
[1756994450496,1.4581,4379.8,4379.5,1.4465]
[1756994450679,1.4508,4379.7,4379.4,0.243]
[1756994451586,0.6257,4379.5,4379.4,0.243]
[1756994451792,2.0765,4379.5,4379.4,0.243]
[1756994454693,0.001,4380.0,4379.6,1.4465]
[1756994454883,0.001,4380.0,4379.9,9.31404089]
[1756994455087,0.001,4380.0,4379.9,9.55604089]
[1756994456189,0.001,4380.0,4379.9,4.6543]
[1756994456494,0.6267,4380.0,4379.9,0.242]
[1756994456691,2.0775,4380.0,4379.9,0.242]
[1756994457205,3.0712,4379.9,4379.5,31.513]
[1756994457392,1.4508,4379.8,4379.6,0.242]
[1756994457595,1.4508,4379.7,4379.6,0.242]
[1756994457787,1.6204,4379.9,4379.6,0.242]
[1756994458095,1.4508,4379.8,4379.6,1.6885]
[1756994458290,1.4508,4379.8,4379.7,1.4465]
[1756994458499,1.4508,4379.8,4379.6,0.242]
[1756994458500,1.6204,4379.9,4379.6,0.242]
[1756994458789,1.6204,4379.9,4379.7,1.4465]
[1756994458989,1.6204,4379.9,4379.6,4.90174089]
[1756994459394,1.6204,4379.9,4379.7,1.4465]
[1756994459697,1.6204,4379.9,4379.6,4.90174089]